Cogmind - Beta 16.1 @@@ ROGUE MODE // 2026.02.14 @ 13:34:57 Player: Not_Jesus8 Result: Self-destructed Performance ------------- Evolutions (1) 500 Regions Visited (2) 400 Robots Destroyed (5) 25 Value Destroyed (107) 107 Prototype IDs (0) 0 Alien Tech Used (0) 0 Bonus (200) 200 TOTAL SCORE: 1232 Bonus ------- Pacifist 200 Cogmind --------- Core Integrity 262/400 Matter 203/300 Energy 100/100 System Corruption 0% Temperature Cool (0) Movement Rolling (100) Location -9/Materials Parts ------- > --- POWER (1) -------- (None) > --- PROPULSION (2) --- Compact Wheel > --- UTILITY (4) ------ Small Storage Unit Sensor Array > --- WEAPON (2) ------- (None) > --- INVENTORY (8) ---- Sensor Array Sensor Array Sensor Array Sensor Array Grenade Launcher Peak State ------------ > --- POWER ------------ Light Ion Engine > --- PROPULSION ------- Wheel Compact Wheel > --- UTILITY ---------- Small Storage Unit Sensor Array > --- WEAPON ----------- (None) > --- INVENTORY -------- Grenade Launcher [Rating: 5] Favorites ----------- Power Light Ion Engine Engine Light Ion Engine Propulsion Compact Wheel Wheel Compact Wheel Utility Small Storage Unit Device Sensor Array Storage Small Storage Unit Weapon Grenade Launcher Launcher Grenade Launcher Build | -11 -10 -9 ------- Run | Yrd Mat Mat Slots Evolved 2 | . . 2 Power . | . . . Propulsion . | . . . Utility 2 | . . 2 Weapon . | . . . Parts Attached 7 | 4 1 2 Power 1 | 1 . . Engine 1 | 1 . . Core . | . . . Reactor . | . . . Propulsion 3 | 2 . 1 Treads . | . . . Leg . | . . . Wheel 3 | 2 . 1 Hover . | . . . Flight . | . . . Utility 2 | 1 1 . Device 1 | . 1 . Storage 1 | 1 . . Processor . | . . . Hackware . | . . . Protection . | . . . Artifact . | . . . Weapon 1 | . . 1 Energy Gun . | . . . Energy Cannon . | . . . Ballistic Gun . | . . . Ballistic Cannon . | . . . Launcher 1 | . . 1 Special Weapon . | . . . Impact Weapon . | . . . Slashing Weapon . | . . . Piercing Weapon . | . . . Special Melee Weapon . | . . . Unidentified Prototypes . | . . . Parts Lost 3 | . . 3 Power 1 | . . 1 Propulsion 2 | . . 2 Utility . | . . . Weapon . | . . . Highest Loss Streak 2 | . . 2 To Critical Strikes . | . . . Average Backups 4 | . 3 5 Power . | . . . Propulsion . | . . . Utility 2 | . 2 4 Weapon . | . . . Tool/Special . | . . . Unused Backups 4 | . . 4 Power . | . . . Propulsion . | . . . Utility 4 | . . 4 Weapon . | . . . Tool/Special . | . . . Average Slot Usage (%) 57 | . 65 52 Engine 11 | . 14 10 Wheel 22 | . 28 19 Device 10 | . 8 11 Storage 12 | . 14 11 Peak Build Rating 5 | 4 5 5 Average Rating 4 | 2 4 4 On Entrance 3 | . 4 5 Avg Prop Armor Cover (%) . | . . . Naked Turns . | . . . Heaviest Build 12 | 8 9 12 Greatest Support 26 | 26 26 26 Greatest Overweight (x) . | . . . Average Overweight (x) . | . . . Largest Inventory Capacity 8 | 8 8 8 Average Capacity 7 | 6 8 8 Most Carried 6 | . 6 6 Average Carried 4 | . 4 5 Final Capacity 8 | 8 8 8 Final Carried 6 | . 6 5 Class Distribution -------------------- 100% | Mutant Dominant Class ---------------- Mutant | -10/Materials Mutant | -9/Materials Resources | -11 -10 -9 ----------- Run | Yrd Mat Mat Matter Collected 185 | 185 . . Remotely . | . . . Salvage Created 54 | . . 54 Parts 5 | . . 5 Haulers Intercepted . | . . . Recyclers Shooed . | . . . Parts Field Recycled . | . . . Retrieved Matter . | . . . Parts Self-Destructed . | . . . Prevented . | . . . Parts Restored . | . . . Kills | -11 -10 -9 ------- Run | Yrd Mat Mat Combat Hostiles Destroyed 4 | . . 4 AOE 4 | . . 4 Classes Destroyed 3 | . . 3 Worker 1 | . . 1 Swarmer 3 | . . 3 Brawler 1 | . . 1 Best Kill Streak 5 | . . 5 Combat Bots Only 3 | . . 3 Max Kills in Single Turn 2 | . . 2 Gunslinging . | . . . Exploded 2 | . . 2 Melee . | . . . Uniques/NPCs Destroyed . | . . . Combat | -11 -10 -9 -------- Run | Yrd Mat Mat Hostile Shots Fired 50 | . 21 29 Missed 20 | . 8 12 Hits 30 | . 13 17 Projectile 30 | . 13 17 Critical Strikes 2 | . 2 . Damage Taken 379 | . 160 219 Core 234 | . 96 138 Absorbed by Shields . | . . . Core Remaining (%) 80 | 100 61 . Volleys Fired 4 | . . 4 Largest 1 | . . 1 Hottest 30 | . . 30 Shots Fired 4 | . . 4 Gun . | . . . Cannon . | . . . Launcher 4 | . . 4 Special . | . . . Kinetic . | . . . Thermal . | . . . Explosive 4 | . . 4 Electromagnetic . | . . . Robot Hit Streak 1 | . . 1 Robot Miss Streak 2 | . . 2 Penetration Max . | . . . Secondary Targets . | . . . Shots Hit Robots 1 | . . 1 Core Hits 4 | . . 4 Critical Kills . | . . . Critical Parts Destroyed . | . . . Critical Strikes . | . . . Melee Attacks . | . . . Impact . | . . . Slashing . | . . . Piercing . | . . . Sneak Attacks . | . . . Combat Hostiles . | . . . Follow-up Attacks . | . . . Damage Inflicted 605 | . 7 598 Guns . | . . . Cannons . | . . . Explosions 598 | . . 598 Melee . | . . . Ramming 7 | . 7 . Kinetic . | . . . Thermal . | . . . Explosive 598 | . . 598 Electromagnetic . | . . . Impact . | . . . Slashing . | . . . Piercing . | . . . Highest Corruption 3 | . 3 . Average Corruption 1 | . 1 . Corruption Purged . | . . . Corruption Blocked . | . . . Effects 1 | . 1 . Energy Discharges 1 | . 1 . Overload Shots . | . . . Overflow Damage 130 | . . 130 Projectiles . | . . . Explosions 130 | . . 130 Melee . | . . . Knockbacks . | . . . Impact . | . . . Kinetic . | . . . Secondary . | . . . Self-Inflicted Damage 78 | . 3 75 Shots 1 | . . 1 Rammed 4 | . 4 . Targets Rammed 4 | . 4 . Kicked . | . . . Crushed . | . . . Highest Temperature 12 | . 12 . Average Temperature 8 | . 8 . Received Heat Transfer 144 | . 126 18 Siege Activations . | . . . Martial Activations . | . . . Shielding Activations . | . . . Robots Disrupted . | . . . Combat Hostiles . | . . . Robots Corrupted . | . . . Combat Hostiles . | . . . Parts Fried . | . . . Impact Corruptions . | . . . Robots Melted . | . . . Combat Hostiles . | . . . Parts Melted . | . . . Heat Transferred . | . . . Parts Sabotaged . | . . . Parts Stolen . | . . . Parts Stripped . | . . . Power Chain Reactions . | . . . Alert | -11 -10 -9 ------- Run | Yrd Mat Mat Maximum Alert Level 1 | . . 1 Low Security (%) 91 | 100 100 82 Level 1 8 | . . 17 Level 2 . | . . . Level 3 . | . . . Level 4 . | . . . Level 5 . | . . . High Security . | . . . Max Security . | . . . Peak Influence 233 | . . 233 Initial . | . . . Average 36 | . . 70 Influence Increases 283 | . . 283 Destroy 0b10 Robot/C 80 | . . 80 Destroy 0b10 Robot/NC 5 | . . 5 Destroy Leader 20 | . . 20 Successful Hack 8 | . . 8 Disable Machine 60 | . . 60 Destroy Structure 80 | . . 80 Lose Combat Pursuer 30 | . . 30 Influence Decreases 60 | . . 60 Time Decay 40 | . . 40 Lost Part 20 | . . 20 Squads Dispatched 2 | . 1 1 Investigation 2 | . 1 1 Extermination . | . . . Reinforcement . | . . . Assault . | . . . Garrison . | . . . Intercept . | . . . Searches Triggered . | . . . Construction Impeded . | . . . Haulers Reinforced . | . . . Active Scanning Responses . | . . . Cargo Convoy Interrupts . | . . . Stealth | -11 -10 -9 --------- Run | Yrd Mat Mat Distress Signals . | . . . Communications Jammed . | . . . Distress Signals . | . . . Times Spotted 15 | . 5 10 Peak Tracking Total 6 | . 5 6 Tactical Retreats 2 | . . 2 Traps | -11 -10 -9 ------- Run | Yrd Mat Mat Traps Triggered . | . . . Indirectly . | . . . Trap Hack Attempts . | . . . Triggered . | . . . Disarmed . | . . . Reprogrammed . | . . . Reused . | . . . Traps Extracted . | . . . Installed . | . . . Triggered . | . . . Objects Rigged 3 | . . 3 Exploded 2 | . . 2 Machines | -11 -10 -9 ---------- Run | Yrd Mat Mat Machines Disabled 4 | . . 4 Max in Single Turn 2 | . . 2 Machines Repaired . | . . . Machines Dismantled . | . . . Machines Sabotaged . | . . . Overloaded Fab Kills . | . . . Hacking | -11 -10 -9 --------- Run | Yrd Mat Mat Machines Accessed 2 | . 1 1 Terminals 2 | . 1 1 Fabricators . | . . . Repair Stations . | . . . Recycling Units . | . . . Scanalyzers . | . . . Garrison Access . | . . . Total Hacks 6 | . 3 3 Successful 2 | . 1 1 Failed 4 | . 2 2 Catastrophic . | . . . Database Lockouts . | . . . Manual 6 | . 3 3 Terminals 6 | . 3 3 Fabricators . | . . . Repair Stations . | . . . Recycling Units . | . . . Scanalyzers . | . . . Garrison Access . | . . . Terminal Hacks . | . . . Fabricator Hacks . | . . . Repair Station Hacks . | . . . Recycling Unit Hacks . | . . . Scanalyzer . | . . . Garrison Access Hacks . | . . . Unauthorized Hacks 2 | . 1 1 Terminals 2 | . 1 1 Botnet 1 | . 1 . Detonate 1 | . . 1 Fabricators . | . . . Repair Stations . | . . . Recycling Units . | . . . Scanalyzers . | . . . Garrison Access . | . . . Data Cores Recovered . | . . . Used . | . . . Hacking Detections 2 | . 1 1 Full Trace Events 2 | . 1 1 Feedback Events 1 | . 1 . Corruption 1 | . 1 . Feedback Blocked . | . . . Robot Schematics Acquired . | . . . Robots Built . | . . . Authchips . | . . . Time . | . . . Total Robot Build Rating . | . . . Part Schematics Acquired . | . . . Parts Built . | . . . Authchips . | . . . Time . | . . . Total Part Build Rating . | . . . Part Studies Acquired . | . . . Parts Repaired . | . . . Time . | . . . Parts Recycled . | . . . Recycled Matter . | . . . Retrieved Matter . | . . . Retrieved Components . | . . . Parts Scanalyzed . | . . . Part Schematics Acquired . | . . . Parts Damaged . | . . . Bothacking | -11 -10 -9 ------------ Run | Yrd Mat Mat Used RIF Installer . | . . . Robots Hacked . | . . . Non-combat . | . . . Combat . | . . . Robot Hacks Applied . | . . . Relay Couplers Released . | . . . Fabnet Peak Effective % . | . . . Robots Rewired . | . . . Allies Hacked . | . . . Hacks Repelled . | . . . Allies | -11 -10 -9 -------- Run | Yrd Mat Mat Total Allies . | . . . Largest Group . | . . . Highest-Rated Group . | . . . Highest-Rated Ally . | . . . Total Orders . | . . . Ally Attacks . | . . . Total Damage . | . . . Kills . | . . . Allies Corrupted . | . . . Allies Melted . | . . . Intel | -11 -10 -9 ------- Run | Yrd Mat Mat Active Infowar (turns) 210 | . 70 140 Sensors 210 | . 70 140 Robot Analysis Total . | . . . Derelict Logs Recovered . | . . . Drone Launches . | . . . Drone Recoveries . | . . . Exploration | -11 -10 -9 ------------- Run | Yrd Mat Mat Turns Passed 269 | 36 93 140 Spaces Moved 268 | 41 91 136 Core 15 | 15 . . Treads . | . . . Legs . | . . . Wheels 253 | 26 91 136 Hover . | . . . Flight . | . . . Fastest Speed 50 | 50 90 90 Average Speed 88 | 75 90 91 Slowest Speed 100 | 90 90 100 Overloaded Moves . | . . . Propulsion Burnouts . | . . . Robots Hopped . | . . . Potential Cave-ins . | . . . Cave-ins Triggered . | . . . Exploration Rate (%) 14 | 3 26 14 Regions Visited 2 Branch Regions . Pre-discovered Areas . | . . . Known Exits Taken . | . . . Unknown Exits Taken 2 | 1 1 . Scrap Searched . | . . . Spaces Dug . | . . . Terrain Destroyed 96 | . . 96 Melee . | . . . Projectile . | . . . AOE 96 | . . 96 Terrain Rammed . | . . . Walls Destroyed . | . . . Machines Disabled . | . . . Actions | -11 -10 -9 --------- Run | Yrd Mat Mat Total 292 | 44 101 147 Wait 4 | . . 4 Move 266 | 40 90 136 Hop . | . . . Pick Up 6 | . 6 . Fast Attach 5 | 4 1 . Attach 2 | . . 2 Detach 1 | . . 1 Swap . | . . . Drop . | . . . Fire 4 | . . 4 Melee . | . . . Ram 4 | . 4 . Kick . | . . . Crush . | . . . Escape Stasis . | . . . Rewire . | . . . Trap . | . . . Miscellaneous . | . . . Route ------- -11/Scrapyard -10/Materials -9/Materials History --------- Turn | Location | Event 5 | -11/Scrapyard | Discovered new exit (range 15) 37 | -11/Scrapyard | Entered Materials 117 | -10/Materials | Discovered new exit (range 14) 130 | -10/Materials | Entered another Materials area 130 | -9/Materials | Evolved 2 slots: Utility x2 270 | -9/Materials | Self-destructed Last Messages --------------- Scanning machine control network... Found 3 applicable machines. 906DRI9MQT: Nuclear Reactor PX68CMVEXA: Nuclear Reactor H9JD689KK9: Nuclear Reactor Infected machine control systems. 00234_ Connecting with Terminal... 00234_ ALERT: Suspicious activity at Terminal M008. Dispatching Investigation squad. 00250_ O-16 Technician: "IFF HANDSHAKE FAILED. SECURING TERMINAL." 00253_ The unstable cave ceiling collapses. 00264_ Nuclear Reactor detonated. 00264_ Destroyed Aluminum Leg. 00264_ Lgt. Ion Engine destroyed. 00264_ Destroyed Lgt. Ion Engine. 00264_ Wheel destroyed. 00264_ Destroyed Wheel. 00264_ Destroyed Hover Unit. 00265_ The unstable cave ceiling collapses. Map ----- +----------------------------------------------------+ | ??????????????# #?????????????????????????? | | ??????????????# #?????????????????????????? | | ??????????????# #?????????????????????????? | | ??????????????# #?????????????????????????? | | ???????######## ###+#####?????????????????? | | ???????# ??????????????? | | ######## ??????????????? | | # # """ ??????????????? | | # # =%###### """ ? ###??????????????? | | # = #???? """????????????????????? | | # #???? ???????????????????? | | # ###?? ??????????????????? | | # *= # ### """ ?????????????????? | | # ] # # # "R ?????????????????? | | # # """ ?????????????????? | | # = ## "" ? ?????????????????? | | # ?= ????????????????????? | | # #### ?????????????????????? | | # # #???????????????????????????? | | # = ## #####???????????????????????? | | ##### % o ###?????????????????????? | | ????# #?????????????????????? | | ????# #?????????????????????? | | ????### #?????????????????????? | | ????# #?????????????????????? | | ????### @ #?????????????????????? | | ??????## " g #????????????????????? | | ?????###+#### # ### #?????????????? | | ?????# "" ??????????????? | | ?????# T +?????????????? | | ?????###+####### ###### #?????????????? | | ?????? ????# ??????##???????????????? | | ???? ??# #?????????????????????? | | ???# """ """ # """#?????????????????????? | | ???# """ """ # """#?????????????????????? | | ???# """ """ # ! """#?????????????????????? | | ???# """ """ # #?????????????????????? | | ???#?? ?? ########?????????????????????? | | ???????###????##????????????????????????????? | | | | | | | | | | | | | | | | | | | | | | | +----------------------------------------------------+ Best States ------------- Heat Dissipation 28 Energy Generation 10 Energy Capacity 125 Matter Stores 253 Matter Capacity 300 Sight Range 16 Robot Scan Range 14 Terrain Scan Density 10 Evasion (%) 50 Item Schematics ----------------- None Robot Schematics ------------------ None Fabricated ------------ Nothing Repaired ---------- Nothing Studied --------- None Alien Tech Used ----------------- None Achievements -------------- None Challenges ------------ None Game ------ Seed SuperquantumGravjetHarness Manual? 0 Play Time 00:03:38 Cumulative 38.9 hours Start 2026.02.14 @ 13:32:38 End 2026.02.14 @ 13:34:57 Sessions 1 Manual Loads 0 Difficulty Rogue Special Mode None Game No. 88 Rogue 88 Adventurer 0 Explorer 0 Win Type - Total 2 Types 2/0/0/0/0/0/0/0/0/0 Lore% 40 Gallery% 31 Achievement% 31 Wizard Run 0 Options --------- Layout 1 ASCII 0 Keyboard 1 Movement Arrows Keybinds 0 Fullscreen 1 Font 16/SmallcapsGlow Map View 50x54 Zoom Use 17% Tactical HUD 1 Map Filters NONE Filters NONE Steam 1 RUN: bd0b902c-8cfe-4e59-9372-15c33b44d70d